bitfinex/quotes_BTCUSD_20250213
["timestamp","ask_amount","ask_price","bid_price","bid_amount"]
[1739410409597,0.0001065,97986.0,97950.0,1.90830365]
[1739410409809,0.0001065,97986.0,97950.0,2.06144265]
[1739410410237,0.204119,97982.0,97950.0,2.35144265]
[1739410410422,0.0001065,97986.0,97950.0,2.35144265]
[1739410410880,0.0001065,97986.0,97950.0,2.35344265]
[1739410411121,0.153094,97980.0,97950.0,2.35344265]
[1739410411306,0.153096,97978.0,97950.0,2.35444265]
[1739410411561,0.153093,97980.0,97950.0,2.35444265]
[1739410411770,0.2042185,97986.0,97950.0,2.92794265]
[1739410411985,0.153103,97973.0,97950.0,2.92794265]
[1739410412197,0.2042185,97986.0,97950.0,2.92794265]
[1739410412198,0.2042185,97986.0,97950.0,2.75494265]
[1739410412408,0.153107,97971.0,97950.0,2.75494265]
[1739410412616,0.204142,97971.0,97950.0,2.90778265]
[1739410412829,0.153104,97973.0,97950.0,2.90778265]
[1739410413032,0.153105,97972.0,97950.0,2.90778265]
[1739410413277,0.153105,97972.0,97950.0,2.90678265]
[1739410413476,0.0051066,97951.0,97950.0,2.90778265]
[1739410413689,0.0051066,97951.0,97950.0,2.90578265]
[1739410413899,0.0001066,97951.0,97950.0,2.90478265]
[1739410414076,0.0061066,97951.0,97950.0,2.90578265]
[1739410414287,0.0041066,97951.0,97950.0,2.90578265]
[1739410414634,0.0101066,97951.0,97950.0,2.90678265]
[1739410415653,0.0101066,97951.0,97950.0,2.90578265]
[1739410415654,0.0061066,97951.0,97950.0,2.90578265]
[1739410416056,0.0211066,97951.0,97950.0,2.90678265]
[1739410417750,0.0211066,97951.0,97950.0,2.36028265]
[1739410420782,0.0211066,97951.0,97950.0,2.38328265]
[1739410421000,0.0211066,97951.0,97950.0,2.53328265]
[1739410421827,0.0151066,97951.0,97950.0,2.53228265]
[1739410422224,0.0211066,97951.0,97950.0,2.53328265]
[1739410422400,0.0061066,97951.0,97950.0,2.53228265]
[1739410422641,0.0061066,97951.0,97950.0,2.53328265]
[1739410422840,0.0211066,97951.0,97950.0,2.53328265]
[1739410423212,0.0211066,97951.0,97950.0,2.53350651]
[1739410423575,0.0211066,97951.0,97950.0,3.08000651]
[1739410429640,0.0211066,97951.0,97950.0,2.53350651]
[1739410430538,0.0211066,97951.0,97950.0,2.51050651]
[1739410431585,0.0211066,97951.0,97950.0,2.36050651]
[1739410431792,0.0211066,97951.0,97950.0,2.23770651]
[1739410433525,0.0211066,97951.0,97950.0,2.08456751]
[1739410433726,0.0211066,97951.0,97950.0,2.23770651]
[1739410434522,0.0151066,97951.0,97950.0,2.23670651]
[1739410434752,0.0211066,97951.0,97950.0,2.23770651]
[1739410434884,0.0211066,97951.0,97950.0,2.23670651]
[1739410435291,0.0071066,97951.0,97950.0,2.24270651]
[1739410435489,0.1602436,97951.0,97950.0,2.08956751]
[1739410435691,0.1752436,97951.0,97950.0,2.08956751]
[1739410435873,0.1815947,97951.0,97950.0,2.08956751]
[1739410436072,0.1665947,97951.0,97950.0,2.08956751]
[1739410436649,0.1675947,97951.0,97950.0,2.09356751]
[1739410436871,0.1612436,97951.0,97950.0,2.09356751]
[1739410437047,0.1612436,97951.0,97950.0,1.76656751]
[1739410437610,0.1542436,97951.0,97950.0,1.75956751]
[1739410438009,0.16057822,97951.0,97950.0,1.75956751]
[1739410438544,0.15957822,97951.0,97950.0,1.75556751]
[1739410438747,0.16057822,97951.0,97950.0,1.75556751]
[1739410439194,0.15957822,97951.0,97950.0,1.75556751]
[1739410439395,0.16057822,97951.0,97950.0,1.75556751]
[1739410440517,0.00744122,97951.0,97950.0,1.75556751]
[1739410440721,0.00744122,97951.0,97950.0,1.90870651]
[1739410440942,0.0011066,97951.0,97950.0,1.90870651]
[1739410441599,0.0011066,97951.0,97950.0,1.75556751]
[1739410441768,0.0011066,97951.0,97950.0,1.90870651]
[1739410446203,0.1542436,97951.0,97950.0,1.75556751]
[1739410446703,0.16057822,97951.0,97950.0,1.75556751]
[1739410447133,0.00744122,97951.0,97950.0,1.75556751]
[1739410447748,0.16057822,97951.0,97950.0,1.75556751]
[1739410447965,0.1542436,97951.0,97950.0,0.25556751]
[1739410448169,0.16057592,97951.0,97950.0,0.25556751]
[1739410448318,0.00743892,97951.0,97950.0,0.40870651]
[1739410448959,0.0011066,97951.0,97950.0,0.40870651]
[1739410450623,0.0011066,97951.0,97950.0,0.49080651]
[1739410450826,0.0011066,97951.0,97950.0,0.53960651]
[1739410451170,0.0011066,97951.0,97950.0,2.03960651]
[1739410454993,0.0011066,97951.0,97950.0,1.83766751]
[1739410455213,0.0011066,97951.0,97950.0,1.99080651]
[1739410455568,0.0011066,97951.0,97950.0,1.83796651]
[1739410456844,0.0011066,97951.0,97950.0,1.60272751]
[1739410457798,0.1542436,97951.0,97950.0,1.60272751]
[1739410458077,0.0011066,97951.0,97950.0,1.60272751]
[1739410459415,0.0011066,97951.0,97950.0,1.75586651]
[1739410459600,0.0011066,97951.0,97950.0,1.83596651]
[1739410461051,0.0011066,97951.0,97950.0,1.60272751]
[1739410461853,0.1542436,97951.0,97950.0,1.60272751]
[1739410462055,0.16057249,97951.0,97950.0,1.60272751]
[1739410462848,0.15957249,97951.0,97950.0,1.60272751]
[1739410463244,0.16057249,97951.0,97950.0,1.60272751]
[1739410463718,0.15957249,97951.0,97950.0,1.60272751]
[1739410464083,0.16057249,97951.0,97950.0,1.60272751]
[1739410464445,0.16057249,97951.0,97950.0,1.60472751]
[1739410464726,0.1542436,97951.0,97950.0,1.60272751]
[1739410465025,0.1542436,97951.0,97950.0,1.60572751]
[1739410465766,0.16057249,97951.0,97950.0,1.60572751]
[1739410467946,0.00743549,97951.0,97950.0,1.60572751]
[1739410468546,0.0011066,97951.0,97950.0,1.60572751]
[1739410468748,0.1542436,97951.0,97950.0,1.60572751]
[1739410469313,0.16057249,97951.0,97950.0,1.60572751]
[1739410476742,0.16057249,97951.0,97950.0,1.60272751]
[1739410476995,0.15957249,97951.0,97950.0,1.60272751]
[1739410477209,0.1532436,97951.0,97950.0,1.60372751]
[1739410477443,0.15957076,97951.0,97950.0,1.60372751]
[1739410477931,0.16057076,97951.0,97950.0,1.60372751]
[1739410478283,0.16057076,97951.0,97950.0,0.10372751]
[1739410478626,0.16057076,97951.0,97950.0,0.10272751]
[1739410478828,0.16057076,97951.0,97950.0,1.60472751]
[1739410480175,0.16057076,97951.0,97950.0,0.10472751]
[1739410480940,0.15957076,97951.0,97950.0,0.10472751]
[1739410481540,0.15957076,97951.0,97950.0,0.10272751]
[1739410481768,0.15957076,97951.0,97950.0,0.10372751]
[1739410484323,0.15957076,97951.0,97950.0,1.60372751]
[1739410487378,0.15957076,97951.0,97950.0,0.10372751]
[1739410490842,0.00643376,97951.0,97950.0,0.10372751]
[1739410491040,0.00643376,97951.0,97950.0,1.68332751]
[1739410491267,0.0001066,97951.0,97950.0,1.68332751]
[1739410491432,0.1532436,97951.0,97950.0,1.68332751]
[1739410491626,0.1532436,97951.0,97950.0,1.60372751]
[1739410491901,0.15957076,97951.0,97950.0,1.60372751]
[1739410493024,0.15957076,97951.0,97950.0,0.00122386]
[1739410497214,0.16097076,97951.0,97950.0,0.00122386]
[1739410497413,0.16237076,97951.0,97950.0,0.00122386]
[1739410502321,0.00923376,97951.0,97950.0,0.07932386]
[1739410502557,0.0029066,97951.0,97950.0,0.33496651]
[1739410504521,0.0029066,97951.0,97950.0,0.35400495]
[1739410505729,0.0029066,97951.0,97950.0,1.85400495]
[1739410506554,0.0029066,97951.0,97950.0,1.92550495]
[1739410506761,0.0029066,97951.0,97950.0,1.92450495]
[1739410507474,0.0029066,97951.0,97950.0,1.92550495]
[1739410507667,0.0029066,97951.0,97950.0,1.92750495]
[1739410507811,0.0029066,97951.0,97950.0,1.92650495]
[1739410508013,0.0029066,97951.0,97950.0,1.93150495]
[1739410508210,0.0029066,97951.0,97950.0,1.92950495]
[1739410508494,0.0039066,97951.0,97950.0,1.93150495]
[1739410512669,0.0039066,97951.0,97950.0,1.91246651]
[1739410514159,0.1570436,97951.0,97950.0,1.73632751]
[1739410514280,0.0039066,97951.0,97950.0,1.73632751]
[1739410514487,0.1570436,97951.0,97950.0,1.73632751]
[1739410514950,0.16337545,97951.0,97950.0,1.73632751]
[1739410515151,0.01023845,97951.0,97950.0,1.73632751]
[1739410515708,0.16337545,97951.0,97950.0,1.73632751]
[1739410516091,0.16337545,97951.0,97950.0,1.60972751]
[1739410517075,0.16237545,97951.0,97950.0,1.60772751]
[1739410517469,0.16337545,97951.0,97950.0,1.60972751]
[1739410517690,0.16337545,97951.0,97950.0,1.60472751]
[1739410517840,0.16237545,97951.0,97950.0,1.60672751]
[1739410518041,0.16237545,97951.0,97950.0,1.60872751]
[1739410518237,0.16337545,97951.0,97950.0,1.60872751]
[1739410521136,0.16237545,97951.0,97950.0,1.60672751]
[1739410521365,0.17282338,97951.0,97950.0,1.60272751]
[1739410521564,0.17382338,97951.0,97950.0,1.60672751]
[1739410521946,0.17382338,97951.0,97950.0,0.10672751]
[1739410522344,0.17382338,97951.0,97950.0,1.60672751]
[1739410525697,0.16337545,97951.0,97950.0,1.60672751]
[1739410526913,0.16337545,97951.0,97950.0,1.50422386]
[1739410527714,0.16237545,97951.0,97950.0,0.00022386]
[1739410527910,0.16237545,97951.0,97950.0,0.00222386]
[1739410528112,0.00923845,97951.0,97950.0,0.10572751]
[1739410528358,0.0029066,97951.0,97950.0,1.68782751]
[1739410528940,0.0029066,97951.0,97950.0,1.84096651]
[1739410529117,0.0029066,97951.0,97950.0,1.88966651]
[1739410530304,0.0029066,97951.0,97950.0,1.89528438]
[1739410530483,0.0049066,97951.0,97950.0,1.89728438]
[1739410530892,0.0049066,97951.0,97950.0,1.89628438]
[1739410531285,0.0059066,97951.0,97950.0,1.90228438]
[1739410531499,0.0059066,97951.0,97950.0,1.921328]
[1739410534237,0.0059066,97951.0,97950.0,1.944328]
[1739410539468,0.0059066,97951.0,97950.0,2.271328]
[1739410545387,0.0059066,97951.0,97950.0,2.265328]
[1739410545585,0.0049066,97951.0,97950.0,2.265328]
[1739410546392,0.0059066,97951.0,97950.0,2.271328]
[1739410546615,0.0039066,97951.0,97950.0,2.269328]
[1739410547017,0.0049066,97951.0,97950.0,2.282328]
[1739410547992,0.0039066,97951.0,97950.0,2.276328]
[1739410548430,0.0039066,97951.0,97950.0,2.828828]
[1739410548634,0.0039066,97951.0,97950.0,2.978828]
[1739410550827,0.0039066,97951.0,97950.0,2.432328]
[1739410551684,0.0039066,97951.0,97950.0,2.585128]
[1739410552037,0.0039066,97951.0,97950.0,2.60507644]
[1739410553627,0.0039066,97951.0,97950.0,2.585128]
[1739410554542,0.0039066,97951.0,97950.0,3.11258438]
[1739410555914,0.0039066,97951.0,97950.0,3.22008438]
[1739410556437,0.0039066,97951.0,97950.0,3.23546651]
[1739410557013,0.0025066,97951.0,97950.0,3.23546651]
[1739410560251,0.0025066,97951.0,97950.0,2.68896651]
[1739410563158,0.0025066,97951.0,97950.0,2.69658492]
[1739410563459,0.0025066,97951.0,97950.0,2.7283083]
[1739410568259,0.0025066,97951.0,97950.0,2.69658492]
[1739410568466,0.0025066,97951.0,97950.0,2.56578492]
[1739410568889,0.0025066,97951.0,97950.0,2.40816651]
[1739410569926,0.0025066,97951.0,97950.0,2.23202751]
[1739410570419,0.0025066,97951.0,97950.0,2.05816651]
[1739410572695,0.0025066,97951.0,97950.0,0.55816651]
[1739410573224,0.0025066,97951.0,97950.0,2.05816651]
[1739410573615,0.0025066,97951.0,97950.0,2.08116651]
[1739410573830,0.0025066,97951.0,97950.0,2.20866651]
[1739410574755,0.0025066,97951.0,97950.0,2.22767938]
[1739410575156,0.0025066,97951.0,97950.0,2.56228419]
[1739410580666,0.0025066,97951.0,97950.0,2.54327132]
[1739410580959,0.0025066,97951.0,97950.0,2.53566651]
[1739410582993,0.0025066,97951.0,97950.0,2.55469203]
[1739410583196,0.0025066,97951.0,97950.0,2.42719203]
[1739410583759,0.0025066,97951.0,97950.0,2.43480255]
[1739410585283,0.0025066,97951.0,97950.0,2.41180255]
[1739410589218,0.0025066,97951.0,97950.0,2.25866355]
[1739410589815,0.0025066,97951.0,97950.0,2.41180255]
[1739410591075,0.0025066,97951.0,97950.0,2.39277703]
[1739410592557,0.0025066,97951.0,97950.0,2.38516651]
[1739410593007,0.0025066,97951.0,97950.0,2.39277634]
[1739410593367,0.0025066,97951.0,97950.0,2.41180073]
[1739410593770,0.0025066,97951.0,97950.0,2.25866173]
[1739410594633,0.0025066,97951.0,97950.0,2.41180073]
[1739410595669,0.0025066,97951.0,97950.0,2.4041909]
[1739410596321,0.0025066,97951.0,97950.0,2.38516651]
[1739410597593,0.0025066,97951.0,97950.0,2.23202751]
[1739410598935,0.0025066,97951.0,97950.0,1.90502751]
[1739410601436,0.0025066,97951.0,97950.0,0.27452751]
[1739410601636,0.1556436,97951.0,97950.0,0.17202386]
[1739410601837,0.01042173,97951.0,97950.0,0.17202386]
[1739410602114,0.0025066,97951.0,97950.0,1.67202386]
[1739410602519,0.0015066,97951.0,97950.0,1.65902386]
[1739410602723,0.0015066,97951.0,97950.0,1.65602386]
[1739410603159,0.0015066,97951.0,97950.0,0.00722386]
[1739410603160,0.4292436,97951.0,97950.0,0.00722386]
[1739410603372,0.204223,97932.0,97908.0,0.08151662]
[1739410603587,0.153173,97928.0,97913.0,0.204261]
[1739410603784,0.153173,97928.0,97917.0,0.153189]
[1739410603987,0.16104505,97928.0,97927.0,0.09125569]
[1739410605450,0.16104505,97928.0,97927.0,5.854e-05]
[1739410605654,0.16104505,97928.0,97927.0,0.00305854]
[1739410605856,0.00787205,97928.0,97927.0,0.00605854]
[1739410606180,0.153173,97928.0,97927.0,0.01005854]
[1739410606393,0.00787511,97928.0,97927.0,0.11256219]
[1739410606594,0.16104811,97928.0,97927.0,0.11256219]
[1739410606759,0.153173,97928.0,97927.0,0.11256219]
[1739410606937,0.16104964,97928.0,97927.0,0.11256219]
[1739410608383,0.16104964,97928.0,97927.0,0.10656219]
[1739410608618,0.16104964,97928.0,97927.0,0.10256219]
[1739410608808,0.16104964,97928.0,97927.0,0.10556219]
[1739410609303,0.16104964,97928.0,97927.0,0.10256219]
[1739410609639,0.16104964,97928.0,97927.0,0.10456219]
[1739410611040,0.16104964,97928.0,97927.0,0.00205854]
[1739410612035,0.16104964,97928.0,97927.0,5.854e-05]
[1739410612241,0.16104964,97928.0,97927.0,0.00105854]
[1739410612242,0.16304964,97928.0,97927.0,0.00105854]
[1739410613699,0.16304964,97928.0,97927.0,5.854e-05]
[1739410613905,0.16104964,97928.0,97927.0,5.854e-05]
[1739410614044,0.16304964,97928.0,97927.0,5.854e-05]
[1739410614854,0.16304964,97928.0,97927.0,0.00105854]
[1739410616678,0.16304964,97928.0,97927.0,0.0012824]
[1739410619347,0.002,97928.0,97927.0,0.10378605]
[1739410619550,0.155173,97928.0,97927.0,0.10378605]
[1739410619899,0.16306089,97928.0,97927.0,0.10378605]
[1739410622088,0.16306089,97928.0,97927.0,0.0012824]
[1739410624482,0.39316089,97928.0,97927.0,0.0012824]
[1739410624697,0.44126089,97928.0,97927.0,0.0012824]
[1739410625654,0.44126089,97928.0,97927.0,0.0002824]
[1739410626053,0.44326089,97928.0,97927.0,0.0002824]
[1739410626264,0.45726089,97928.0,97927.0,0.0012824]
[1739410626738,0.44326089,97928.0,97927.0,0.0002824]
[1739410627125,0.45726089,97928.0,97927.0,0.0012824]
[1739410641041,0.32906089,97928.0,97927.0,0.0012824]
[1739410645573,0.17906089,97928.0,97927.0,0.0012824]
[1739410660734,0.32906089,97928.0,97927.0,0.0012824]
[1739410661642,0.40456089,97928.0,97927.0,0.0012824]
[1739410662519,0.40056089,97928.0,97927.0,0.0012824]
[1739410662729,0.39056089,97928.0,97927.0,0.0002824]
[1739410663715,0.38656089,97928.0,97927.0,0.0002824]
[1739410664037,0.40156089,97928.0,97927.0,0.0012824]
[1739410664464,0.38656089,97928.0,97927.0,0.0002824]
[1739410665045,0.39156089,97928.0,97927.0,0.0002824]
[1739410665803,0.40656089,97928.0,97927.0,0.0012824]
[1739410667020,0.39156089,97928.0,97927.0,0.0002824]
[1739410667352,0.39156089,97928.0,97898.0,0.0001066]
[1739410667353,0.153219,97899.0,97898.0,0.0001066]
[1739410667556,0.153219,97899.0,97898.0,0.00023873]
[1739410667758,0.16089961,97899.0,97898.0,0.00023873]
[1739410669088,0.16289961,97899.0,97898.0,0.00023873]
[1739410669853,0.31589961,97899.0,97898.0,0.00023873]
[1739410670465,0.33290515,97899.0,97898.0,0.00023873]
[1739410670666,0.33590515,97899.0,97898.0,0.00023873]
[1739410671062,0.33390515,97899.0,97898.0,0.00023873]
[1739410671512,0.34409864,97899.0,97898.0,0.00023873]
[1739410672970,0.34109864,97899.0,97898.0,0.00023873]
[1739410673200,0.35109864,97899.0,97898.0,0.00023873]
[1739410674617,0.35409864,97899.0,97898.0,0.00023873]
[1739410693756,0.04068615,97899.0,97898.0,0.00023873]
[1739410693907,0.34390515,97899.0,97898.0,0.00023873]
[1739410694513,0.33390515,97899.0,97898.0,0.00023873]
[1739410694718,0.33090515,97899.0,97898.0,0.00023873]
[1739410694913,0.33690515,97899.0,97898.0,0.00023873]
[1739410695334,0.33390515,97899.0,97898.0,0.00023873]
[1739410695510,0.34404772,97899.0,97898.0,0.00023873]
[1739410695712,0.35004772,97899.0,97898.0,0.00023873]
[1739410696655,0.35104772,97899.0,97898.0,0.00023873]
[1739410696873,0.34704772,97899.0,97898.0,0.00023873]
[1739410697193,0.34204772,97899.0,97898.0,0.07563873]
[1739410697401,0.34704772,97899.0,97898.0,0.07563873]
[1739410698729,0.34704772,97899.0,97898.0,0.00023873]
[1739410708085,0.19704772,97899.0,97898.0,0.00023873]
[1739410721548,0.18690515,97899.0,97898.0,0.08183873]
[1739410722327,0.18690515,97899.0,97898.0,1.73183873]
[1739410722531,0.18690515,97899.0,97898.0,0.23183873]
[1739410722717,0.18690515,97899.0,97898.0,0.27693873]
[1739410739885,0.18690515,97899.0,97898.0,0.23183873]
[1739410740094,0.18690515,97899.0,97898.0,0.15023873]
[1739410741578,0.18690515,97899.0,97898.0,0.00023873]
[1739410743085,0.18190515,97899.0,97898.0,0.00023873]
[1739410743508,0.19090515,97899.0,97898.0,0.00023873]
[1739410743955,0.19390515,97899.0,97898.0,0.00023873]
[1739410759060,0.19390515,97899.0,97898.0,0.07853873]
[1739410759704,0.17389961,97899.0,97898.0,0.07853873]
[1739410760336,0.17389961,97899.0,97898.0,1.72853873]
[1739410760967,0.17389961,97899.0,97898.0,0.22853873]
[1739410763924,0.16389961,97899.0,97898.0,0.22853873]
[1739410764386,0.01468061,97899.0,97898.0,0.22853873]
[1739410764811,0.007,97899.0,97898.0,0.22853873]
[1739410765028,0.01455474,97899.0,97898.0,0.22853873]
[1739410765227,0.007,97899.0,97898.0,0.22853873]
[1739410766580,0.01455764,97899.0,97898.0,0.22853873]
[1739410768066,0.01155764,97899.0,97898.0,0.22853873]
[1739410769747,0.16477664,97899.0,97898.0,0.22853873]
[1739410773206,0.01155764,97899.0,97898.0,0.22853873]
[1739410773611,0.004,97899.0,97898.0,0.22853873]
[1739410774237,0.01156157,97899.0,97898.0,0.22853873]
[1739410774471,0.004,97899.0,97898.0,0.22853873]
[1739410775519,0.157219,97899.0,97898.0,0.22853873]
[1739410775747,0.004,97899.0,97898.0,0.22853873]
[1739410776792,0.004,97899.0,97898.0,0.48426238]
[1739410779173,0.004,97899.0,97898.0,0.33404238]
[1739410779417,0.153213,97903.0,97900.0,0.0769]
[1739410779671,0.153213,97903.0,97902.0,0.15]
[1739410779910,0.153213,97903.0,97902.0,0.32960365]
[1739410781154,0.153213,97903.0,97902.0,0.33060365]
[1739410781361,0.153212,97904.0,97902.0,0.33060365]
[1739410781562,0.153212,97904.0,97903.0,0.25250365]
[1739410782735,0.154212,97904.0,97903.0,0.25250365]
[1739410783196,0.16110315,97904.0,97903.0,0.25250365]
[1739410783386,0.16010315,97904.0,97903.0,0.25250365]
[1739410783579,0.16110315,97904.0,97903.0,0.25350365]
[1739410786535,0.16110315,97904.0,97903.0,0.151]
[1739410795850,0.16110315,97904.0,97903.0,0.15122365]
[1739410799331,0.16110215,97904.0,97903.0,0.15122365]
[1739410814738,0.16110215,97904.0,97903.0,0.00122365]
[1739410814975,0.24020215,97904.0,97903.0,0.00122365]
[1739410815805,0.23920215,97904.0,97903.0,0.00122365]
[1739410816253,0.24920215,97904.0,97903.0,0.00122365]
[1739410816464,0.3517058,97904.0,97903.0,0.00022365]
[1739410816670,0.3417058,97904.0,97903.0,0.00022365]
[1739410816881,0.3437058,97904.0,97903.0,0.00022365]
[1739410817108,0.3537058,97904.0,97903.0,0.00022365]
[1739410817325,0.3567058,97904.0,97903.0,0.00022365]
[1739410817926,0.3607058,97904.0,97903.0,0.00022365]
[1739410818556,0.3487058,97904.0,97903.0,0.00022365]
[1739410818741,0.6907058,97904.0,97903.0,0.00022365]
[1739410823308,0.5374948,97904.0,97898.0,0.00023873]
[1739410823485,0.163219,97899.0,97898.0,0.00023873]
[1739410823681,0.35210724,97899.0,97898.0,0.00023873]
[1739410825798,0.36610724,97899.0,97898.0,0.00023873]
[1739410826771,0.153244,97883.0,97879.0,0.00022365]
[1739410827006,0.16001239,97883.0,97879.0,0.00022365]
[1739410828047,0.16201239,97883.0,97879.0,0.00022365]
[1739410828653,0.17601239,97883.0,97879.0,0.00022365]
[1739410829010,0.16201239,97883.0,97879.0,0.00022365]
[1739410829218,0.16001239,97883.0,97879.0,0.00022365]
[1739410829417,0.17401239,97883.0,97879.0,0.00022365]
[1739410829618,0.17801239,97883.0,97879.0,0.00022365]
[1739410829863,0.17401239,97883.0,97879.0,0.00022365]
[1739410830292,0.17901239,97883.0,97879.0,0.00022365]
[1739410830702,0.49701239,97883.0,97879.0,0.00022365]
[1739410830903,0.51101239,97883.0,97879.0,0.00022365]
[1739410834987,0.71601969,97883.0,97879.0,0.00022365]
[1739410835209,0.61351604,97883.0,97879.0,0.00022365]
[1739410862209,0.51101239,97883.0,97882.0,0.08012365]
[1739410866294,0.18301239,97883.0,97882.0,0.08012365]
[1739410873999,0.18301239,97883.0,97882.0,0.00022365]
[1739410887055,0.28551604,97883.0,97882.0,0.00022365]
[1739410888757,0.27151604,97883.0,97882.0,0.00022365]
[1739410888968,0.28651604,97883.0,97882.0,0.00022365]
[1739410889175,0.28151604,97883.0,97882.0,0.00022365]
[1739410889381,0.27751604,97883.0,97882.0,0.00022365]
[1739410889592,0.28451604,97883.0,97882.0,0.00022365]
[1739410890043,0.61951604,97883.0,97882.0,0.00022365]
[1739410890469,0.59051604,97883.0,97882.0,0.00022365]
[1739410890690,0.61151604,97883.0,97882.0,0.00022365]
[1739410890901,0.60451604,97883.0,97882.0,0.00022365]
[1739410891303,0.59751604,97883.0,97882.0,0.00022365]
[1739410891761,0.61151604,97883.0,97882.0,0.00022365]
[1739410892208,0.59751604,97883.0,97882.0,0.00022365]
[1739410893136,0.59051604,97883.0,97882.0,0.00022365]
[1739410893355,0.59751604,97883.0,97882.0,0.00022365]
[1739410893571,0.60451604,97883.0,97882.0,0.00022365]
[1739410894003,0.59651604,97883.0,97882.0,0.00022365]
[1739410894403,0.61303422,97883.0,97882.0,0.00022365]
[1739410895315,0.51053057,97883.0,97882.0,0.00022365]
[1739410902024,0.18253057,97883.0,97882.0,0.00022365]
[1739410919844,0.51053057,97883.0,97882.0,0.00022365]
[1739410937260,0.49653057,97883.0,97882.0,0.00022365]
[1739410937743,0.16953057,97883.0,97882.0,0.00022365]
[1739410938928,0.01628657,97883.0,97882.0,0.00022365]
[1739410939152,0.01628657,97883.0,97882.0,0.22532365]
[1739410939610,0.007,97883.0,97882.0,0.22532365]
[1739410940067,0.160244,97883.0,97882.0,0.22532365]
[1739410940292,0.007,97883.0,97882.0,0.22532365]
[1739410940520,0.01649621,97883.0,97882.0,0.22532365]
[1739410940795,0.007,97883.0,97882.0,0.22532365]
[1739410941249,0.01650381,97883.0,97882.0,0.22532365]
[1739410941934,0.16974781,97883.0,97882.0,0.22532365]
[1739410942162,0.160244,97883.0,97882.0,0.22532365]
[1739410942403,0.16974781,97883.0,97882.0,0.22532365]
[1739410945525,0.01650381,97883.0,97882.0,0.22532365]
[1739410946184,0.16974781,97883.0,97882.0,0.22532365]
[1739410946392,0.01650381,97883.0,97882.0,0.22532365]
[1739410947424,0.01650381,97883.0,97882.0,0.24445257]
[1739410953775,0.16974781,97883.0,97882.0,0.24445257]
[1739410955819,0.16974781,97883.0,97882.0,0.22532365]
[1739410959661,0.16974781,97883.0,97882.0,0.24445215]
[1739410961455,0.01650381,97883.0,97882.0,0.24445215]
[1739410961664,0.007,97883.0,97882.0,0.4056031]
[1739410961888,0.007,97883.0,97882.0,0.5308341]
[1739410962095,0.007,97883.0,97882.0,2.05113577]
[1739410962325,0.001,97883.0,97882.0,2.05113577]
[1739410963590,0.00022387,97891.0,97890.0,0.429133]
[1739410963801,0.00022387,97891.0,97890.0,0.53163665]
[1739410964214,0.00022387,97891.0,97890.0,2.03163665]
[1739410965071,0.00022387,97891.0,97890.0,2.03263665]
[1739410965072,0.00122387,97891.0,97890.0,2.03263665]
[1739410965194,0.00222387,97891.0,97890.0,2.03663665]
[1739410965844,0.00222387,97891.0,97890.0,2.05576515]
[1739410966467,0.00222387,97891.0,97890.0,2.0710669]
[1739410966895,0.00222387,97891.0,97890.0,2.09095929]
[1739410969728,0.00222387,97891.0,97890.0,2.07565754]
[1739410969962,0.00222387,97891.0,97890.0,2.06341607]
[1739410971090,0.00222387,97891.0,97890.0,0.56341607]
[1739410971639,0.00222387,97891.0,97890.0,2.06341607]
[1739410979708,0.00222387,97891.0,97890.0,2.07562933]
[1739410979908,0.00222387,97891.0,97890.0,2.10616118]
[1739410980029,0.00222387,97891.0,97890.0,2.10638483]
[1739410981136,0.00222387,97891.0,97890.0,2.07585298]
[1739410986712,0.00222387,97891.0,97890.0,2.07542049]
[1739410990622,0.01053181,97907.0,97906.0,0.303208]
[1739410991050,0.02030372,97916.0,97909.0,0.153202]
[1739410991281,0.02030372,97916.0,97906.0,0.0191285]
[1739410991511,0.21333541,97915.0,97909.0,0.15]
[1739410991788,0.153195,97914.0,97909.0,0.15]
[1739410992216,0.00907558,97913.0,97910.0,0.0191285]
[1739410992425,0.00907558,97913.0,97910.0,0.02677942]
[1739410993530,0.01607558,97913.0,97911.0,0.0191285]
[1739410993735,0.01807558,97913.0,97911.0,0.0191285]
[1739410994574,0.01607558,97913.0,97911.0,0.0191285]
[1739410994761,0.01707558,97913.0,97911.0,0.0191285]
[1739410995013,0.01007558,97913.0,97911.0,0.0191285]
[1739410995209,0.03733692,97913.0,97911.0,0.0191285]
[1739410995350,0.03733692,97913.0,97912.0,0.0191285]
[1739410995843,0.19053392,97913.0,97912.0,0.0191285]
[1739410995985,0.03733692,97913.0,97912.0,0.0191285]
[1739410996188,0.03033692,97913.0,97912.0,0.3223265]
[1739410996571,0.02726134,97913.0,97912.0,0.3223265]
[1739410996999,0.02926134,97913.0,97912.0,0.3223265]
[1739410997662,0.02726134,97913.0,97912.0,0.3223265]
[1739410997851,0.02926276,97913.0,97912.0,0.3233265]
[1739410998134,0.02926276,97913.0,97912.0,0.1701285]
[1739410998354,0.03626276,97913.0,97912.0,0.1701285]
[1739410998564,0.02026134,97913.0,97912.0,0.1701285]
[1739410998785,0.153194,97915.0,97913.0,0.15]
[1739410998995,0.153195,97914.0,97913.0,0.15]
[1739410999900,0.153195,97914.0,97912.0,0.0191285]
[1739411000106,0.153195,97914.0,97913.0,0.001]
[1739411000311,0.153195,97914.0,97913.0,0.0201285]
[1739411000516,0.204256,97917.0,97913.0,0.0201285]
[1739411000517,0.204256,97917.0,97913.0,0.0191285]
[1739411000731,0.02055777,97914.0,97913.0,0.0201285]
[1739411000932,0.17375277,97914.0,97913.0,0.0201285]
[1739411001553,0.17375277,97914.0,97913.0,0.0191285]
[1739411001995,0.17475277,97914.0,97913.0,0.0191285]
[1739411003263,0.17475277,97914.0,97913.0,0.0201285]
[1739411004174,0.17475277,97914.0,97913.0,0.001]
[1739411004422,0.25455277,97914.0,97913.0,0.001]
[1739411004647,0.25355277,97914.0,97913.0,0.001]
[1739411004869,0.26055277,97914.0,97913.0,0.001]
[1739411005085,0.10735777,97914.0,97891.0,0.15022365]
[1739411005303,0.15323,97892.0,97891.0,0.1027273]
[1739411005747,0.16221426,97892.0,97891.0,0.1027273]
[1739411006198,0.153227,97894.0,97891.0,0.11038624]
[1739411006427,0.204275,97907.0,97892.0,0.15]
[1739411006647,0.00900075,97893.0,97892.0,0.15]
[1739411006870,0.153227,97894.0,97892.0,0.15]
[1739411007349,0.20429,97900.0,97892.0,0.15]
[1739411007560,0.204289,97901.0,97892.0,0.15865894]
[1739411007777,0.204292,97899.0,97892.0,0.15865894]
[1739411007987,0.153223,97897.0,97892.0,0.15765894]
[1739411008197,0.153223,97897.0,97892.0,0.15965894]
[1739411008381,0.153225,97895.0,97892.0,0.15965894]
[1739411008581,0.00900349,97896.0,97892.0,0.15965894]
[1739411008784,0.09217352,97910.0,97893.0,0.01913713]
[1739411008785,0.001,97901.0,97893.0,0.01913713]
[1739411008989,0.153217,97900.0,97894.0,0.15]
[1739411009190,0.153224,97896.0,97894.0,0.15]
[1739411009393,0.153222,97898.0,97894.0,0.15]
[1739411009568,0.153223,97896.0,97895.0,1.65]
[1739411010347,0.154222,97897.0,97896.0,0.15]